bitfinex-derivatives/quotes_ETHF0:USTF0_20250314
["timestamp","ask_amount","ask_price","bid_price","bid_amount"]
[1741945921117,3.03701,1898.2,1898.1,0.00790118]
[1741945921424,6.33146363,1898.2,1898.1,0.00790118]
[1741945926218,6.3314692,1898.2,1898.1,0.00790118]
[1741945926725,1.05404,1897.6,1897.5,1.76039]
[1741945926926,1.0541,1897.5,1897.4,3.2078]
[1741945927132,1.05426,1897.2,1897.1,1.76352]
[1741945927427,1.05431,1897.2,1896.8,12.49641]
[1741945927628,1.0543,1897.2,1897.1,1.05432]
[1741945927827,1.05434,1897.1,1896.8,10.57730118]
[1741945928026,1.74784,1897.1,1897.0,1.05436]
[1741945928418,3.05732,1897.1,1896.9,2.50738]
[1741945928632,1.3653,1897.0,1896.9,1.05438]
[1741945932226,2.29690118,1897.2,1896.8,10.57730118]
[1741945932526,2.44542,1897.1,1896.8,10.57730118]
[1741945932731,1.3911,1897.0,1896.9,1.0544]
[1741945933633,1.3911,1897.0,1896.9,1.05443]
[1741945934829,1.05432,1897.1,1896.8,10.57730118]
[1741945935029,1.05432,1897.1,1897.0,1.05438]
[1741945935229,2.41692,1897.1,1897.0,1.05438]
[1741945935533,1.3626,1897.1,1896.8,10.57730118]
[1741945935733,2.41694,1897.1,1896.8,10.57730118]
[1741945936232,2.41692,1897.1,1897.0,1.05438]
[1741945936436,1.3626,1897.1,1897.0,1.05438]
[1741945936626,0.00790118,1897.2,1896.8,10.57730118]
[1741945936828,0.00790118,1897.2,1897.1,1.05432]
[1741945937522,0.00790118,1897.2,1897.1,2.40252]
[1741945937727,0.00790118,1897.2,1897.1,4.90252]
[1741945937927,8.5904,1898.2,1897.1,4.90252]
[1741945937928,2.29,1897.9,1897.1,14.1822]
[1741945938130,2.29,1898.0,1897.9,1.05385]
[1741945938436,2.29,1898.0,1897.8,0.677]
[1741945938735,3.6479,1898.0,1897.9,1.05388]
[1741945938933,1.74088,1898.1,1897.9,1.05388]
[1741945939135,3.09878,1898.1,1897.9,1.05388]
[1741945939339,1.05382,1898.0,1897.9,1.05388]
[1741945939633,2.41172,1898.0,1897.9,1.05388]
[1741945939834,1.3579,1898.0,1897.9,1.05388]
[1741945940036,2.41172,1898.0,1897.9,1.05388]
[1741945941435,1.3579,1898.0,1897.9,1.05388]
[1741945943836,1.74091,1898.1,1897.9,1.05388]
[1741945944134,3.07591,1898.1,1897.9,1.05388]
[1741945944339,2.38876,1898.1,1898.0,1.05382]
[1741945944539,2.38876,1898.1,1897.9,1.05384]
[1741945945038,2.38876,1898.1,1898.0,1.05382]
[1741945945339,2.38876,1898.1,1897.9,1.05383]
[1741945945737,2.38876,1898.1,1897.9,4.26163]
[1741945945936,2.38882,1898.0,1897.9,3.2078]
[1741945946537,1.05388,1897.9,1897.8,1.39060118]
[1741945946836,2.43968,1897.9,1897.8,1.39060118]
[1741945947338,1.3858,1897.9,1897.8,3.87703118]
[1741945947536,2.43968,1897.9,1897.8,3.87703118]
[1741945948137,1.3858,1897.9,1897.8,3.87703118]
[1741945948340,2.43968,1897.9,1897.8,0.00790118]
[1741945948835,3.14398,1897.9,1897.8,0.00790118]
[1741945949934,2.0901,1897.9,1897.8,1.06183118]
[1741945950133,3.14398,1897.9,1897.8,2.50763118]
[1741945950329,3.14398,1897.9,1897.8,0.00790118]
[1741945952734,6.35178,1897.9,1897.8,0.00790118]
[1741945953542,6.43839427,1897.9,1897.8,0.00790118]
[1741945954439,6.35178,1897.9,1897.8,0.00790118]
[1741945961746,8.64078,1897.9,1897.8,0.00790118]
[1741945967641,6.35178,1897.9,1897.8,1.06183118]
[1741945967954,8.64078,1897.9,1897.8,0.00790118]
[1741945968547,8.64078,1897.9,1897.8,1.32250118]
[1741945970147,5.64748,1897.9,1897.8,2.37643118]
[1741945970341,7.93648,1897.9,1897.8,3.03403118]
[1741945971063,7.93648,1897.9,1897.8,1.98010118]
[1741945972648,5.64748,1897.9,1897.8,3.03403118]
[1741945972854,7.93648,1897.9,1897.8,3.03403118]
[1741945973245,6.55068,1897.9,1897.8,3.03403118]
[1741945973850,3.34288,1897.9,1897.8,3.03403118]
[1741945974051,4.66828,1898.0,1897.9,1.05388]
[1741945974250,4.66828,1898.0,1897.9,2.43688]
[1741945974649,3.34288,1898.0,1897.9,2.43688]
[1741945974844,1.4256,1898.1,1897.9,2.43688]
[1741945975047,4.76836,1898.1,1898.0,1.383]
[1741945975248,4.76836,1898.1,1898.0,2.0557]
[1741945976952,2.47936,1898.1,1898.0,2.0557]
[1741945977249,4.85502032,1898.1,1898.0,2.0557]
[1741945977657,4.76836,1898.1,1898.0,2.0557]
[1741945977856,4.85502265,1898.1,1898.0,2.0557]
[1741945978352,4.85502265,1898.1,1898.0,1.383]
[1741945978565,8.06282265,1898.1,1898.0,1.383]
[1741945981455,1.05388,1897.9,1897.8,0.66550118]
[1741945982851,2.50738,1897.9,1897.8,2.06710118]
[1741945984150,5.71518,1897.9,1897.8,2.06710118]
[1741945984359,2.50738,1897.9,1897.8,2.06710118]
[1741945985462,5.71518,1897.9,1897.8,2.06710118]
[1741945985959,6.42228,1897.9,1897.8,2.06710118]
[1741945988665,1.05404,1897.6,1897.5,2.0715]
[1741945989058,2.43344,1897.6,1897.5,2.0715]
[1741945989457,2.43344,1897.6,1897.5,3.1256]
[1741945989458,1.3794,1897.6,1897.5,3.1256]
[1741945989963,0.00790118,1897.7,1897.5,2.0715]
[1741945990165,0.00790118,1897.7,1897.6,2.43814]
[1741945991861,1.06189118,1897.7,1897.6,2.43814]
[1741945992166,2.42609118,1897.7,1897.6,2.43814]
[1741945995367,0.00790118,1897.7,1897.6,2.43814]
[1741945995868,2.38699118,1897.7,1897.6,2.43814]
[1741945998170,2.38699118,1897.7,1897.6,1.3841]
[1741945999665,2.38699118,1897.7,1897.6,2.43814]
[1741946000769,2.38699118,1897.7,1897.6,1.3841]
[1741946000968,2.38699118,1897.7,1897.6,2.43814]
[1741946001165,1.06189118,1897.7,1897.6,2.43814]
[1741946001365,2.43479118,1897.7,1897.6,2.43814]
[1741946005971,0.00790118,1897.7,1897.6,2.43814]
[1741946006570,1.43960118,1897.7,1897.6,2.43814]
[1741946007566,0.00790118,1897.7,1897.6,2.43814]
[1741946011978,1.3098,1897.9,1897.8,1.05393]
[1741946012675,1.3098,1897.9,1897.8,3.12943]
[1741946013769,2.36368,1897.9,1897.8,3.12943]
[1741946013974,2.36368,1897.9,1897.8,1.4189]
[1741946014369,3.02288,1897.9,1897.8,1.4189]
[1741946014666,3.02288,1897.9,1897.8,2.47283]
[1741946015165,2.36368,1897.9,1897.8,2.47283]
[1741946016782,1.3098,1897.9,1897.8,2.47283]
[1741946016976,2.36368,1897.9,1897.8,2.47283]
[1741946017477,1.3098,1897.9,1897.8,2.47283]
[1741946017884,2.36368,1897.9,1897.8,2.47283]
[1741946018377,1.3098,1897.9,1897.8,2.47283]
[1741946018881,2.36368,1897.9,1897.8,2.47283]
[1741946019178,1.3098,1897.9,1897.8,2.47283]
[1741946021081,2.36368,1897.9,1897.8,2.47283]
[1741946022672,1.05404,1897.6,1897.5,9.1858]
[1741946022867,1.05404,1897.6,1897.5,11.6908]
[1741946024185,1.05404,1897.6,1897.5,10.6367]
[1741946024883,1.05404,1897.6,1897.5,11.6908]
[1741946025379,1.05404,1897.6,1897.5,10.6367]
[1741946025580,1.05404,1897.6,1897.5,11.6908]
[1741946026076,1.05404,1897.6,1897.5,7.4289]
[1741946026978,2.47164,1897.6,1897.5,7.4289]
[1741946027586,1.0541,1897.5,1897.4,0.00790118]
[1741946027775,6.0981,1897.5,1897.4,1.35410118]
[1741946028480,6.0981,1897.5,1897.4,2.40825118]
[1741946028678,4.368,1897.5,1897.4,2.40825118]
[1741946028985,4.26185,1897.6,1897.5,1.0541]
[1741946029173,3.2078,1897.6,1897.5,3.7904]
[1741946029373,1.3851,1897.6,1897.5,3.7904]
[1741946030079,1.56573171,1897.8,1897.5,2.7363]
[1741946030283,0.6634,1897.8,1897.7,1.05399]
[1741946031377,2.0485,1897.8,1897.4,0.00790118]
[1741946031582,1.05405,1897.6,1897.5,2.42117]
[1741946031974,1.3851,1897.7,1897.5,1.3671]
[1741946032175,2.43911,1897.7,1897.6,2.43714]
[1741946032485,1.3851,1897.7,1897.6,2.43714]
[1741946033586,2.43909,1897.7,1897.6,2.43714]
[1741946033790,2.43909,1897.7,1897.6,1.3831]
[1741946034876,1.3851,1897.7,1897.6,2.43714]
[1741946035484,3.6721,1897.7,1897.6,2.43714]
[1741946036388,1.3851,1897.7,1897.6,2.43714]
[1741946036885,1.3851,1897.7,1897.6,1.05404]
[1741946037085,1.05404,1897.6,1897.5,1.05408]
[1741946037388,1.3851,1897.7,1897.5,1.05408]
[1741946037587,1.3851,1897.7,1897.6,1.05404]
[1741946038285,2.43909,1897.7,1897.6,1.05404]
[1741946038593,1.3851,1897.7,1897.5,1.3376]
[1741946038790,1.4347,1897.6,1897.5,2.39164]
[1741946041291,1.4347,1897.8,1897.7,1.05399]
[1741946041485,1.05399,1897.7,1897.6,3.08953]
[1741946041687,1.4347,1897.8,1897.4,3.21570118]
[1741946041879,1.3507,1897.6,1897.4,3.21570118]
[1741946042078,2.40474,1897.6,1897.5,1.3101]
[1741946042680,1.0541,1897.5,1897.4,0.00790118]
[1741946043392,1.14089706,1897.5,1897.4,0.00790118]
[1741946044287,1.0541,1897.5,1897.4,0.00790118]
[1741946044697,1.0541,1897.5,1897.4,1.42970118]
[1741946045287,1.0541,1897.5,1897.4,2.48385118]
[1741946046585,1.0541,1897.5,1897.4,1.42970118]
[1741946047995,1.0541,1897.5,1897.4,2.48385118]
[1741946049896,1.0541,1897.5,1897.4,1.42970118]
[1741946050391,1.0541,1897.5,1897.4,0.00790118]
[1741946050792,4.2619,1897.5,1897.4,0.00790118]
[1741946050991,4.34869381,1897.5,1897.4,0.00790118]
[1741946051381,4.34869857,1897.5,1897.4,0.00790118]
[1741946052287,1.0541,1897.5,1897.4,0.00790118]
[1741946052694,1.0541,1897.5,1897.4,1.33590118]
[1741946052891,1.0541,1897.5,1897.4,0.00790118]
[1741946053087,4.2619,1897.5,1897.4,0.00790118]
[1741946053291,1.0541,1897.5,1897.4,0.00790118]
[1741946053796,1.0541,1897.5,1897.4,1.74525118]
[1741946054290,3.3411,1897.5,1897.4,0.00790118]
[1741946054497,6.63569605,1897.5,1897.4,0.00790118]
[1741946054690,1.05432,1897.1,1897.0,3.09306]
[1741946055487,1.72772,1897.3,1897.2,1.05426]
[1741946056186,0.6735,1897.3,1897.2,2.40976]
[1741946056586,0.6735,1897.3,1897.2,1.3555]
[1741946056788,1.72771,1897.3,1897.2,1.3555]
[1741946057190,1.72771,1897.3,1897.2,2.40976]
[1741946057393,3.15301,1897.3,1897.2,1.3555]
[1741946057690,3.15301,1897.3,1897.1,1.37270118]
[1741946057691,1.05426,1897.2,1897.1,1.37270118]
[1741946057890,3.20256,1897.2,1897.1,1.37270118]
[1741946059496,2.1483,1897.2,1897.1,1.37270118]
[1741946059697,2.47956,1897.2,1897.1,2.42702118]
[1741946060387,2.47956,1897.2,1897.1,1.37270118]
[1741946061107,1.4253,1897.2,1897.1,2.42702118]
[1741946061300,2.47956,1897.2,1897.1,1.37270118]
[1741946062893,2.47956,1897.2,1897.1,0.00790118]
[1741946064294,2.47956,1897.2,1897.1,1.44010118]
[1741946065799,4.01207183,1897.2,1896.7,3.2078]
[1741946065999,5.4784679,1897.3,1896.7,3.2078]
[1741946066000,1.05449,1896.8,1896.7,4.5682]
[1741946066797,2.41799,1896.8,1896.7,1.3604]
[1741946068699,4.70599,1896.8,1896.7,1.3604]
[1741946069099,4.70599,1896.8,1896.7,2.41494]
[1741946069500,3.34249,1896.8,1896.7,2.41494]
[1741946069799,4.71479,1896.8,1896.7,2.41494]
[1741946070302,4.71479,1896.8,1896.6,0.66940118]
[1741946070303,1.05454,1896.7,1896.6,0.00790118]
[1741946070502,3.84094,1896.7,1896.6,0.00790118]
[1741946074510,1.05482,1896.2,1896.1,1.05484]
[1741946074702,1.05482,1896.2,1896.1,1.73194]
[1741946074899,1.05482,1896.2,1896.1,0.6771]
[1741946075300,1.05482,1896.2,1896.1,1.73198]
[1741946075905,2.38432,1896.2,1896.1,2.0211]
[1741946077213,2.38432,1896.2,1896.1,3.07598]
[1741946077809,2.29590118,1896.3,1896.2,1.05482]
[1741946078009,3.35066118,1896.3,1896.2,2.40772]
[1741946078204,3.35066118,1896.3,1896.2,1.3529]
[1741946078511,3.35066118,1896.3,1896.2,2.40772]
[1741946079113,2.29590118,1896.3,1896.2,2.40772]
[1741946079608,3.35066118,1896.3,1896.2,1.3529]
[1741946080412,3.35066118,1896.3,1896.2,2.40772]
[1741946081403,3.35066118,1896.3,1896.2,1.3529]
[1741946083620,2.29590118,1896.3,1896.2,2.40772]
[1741946084118,4.73026118,1896.3,1896.2,2.40772]
[1741946085520,4.73026118,1896.3,1896.2,1.3529]
[1741946086720,4.73026118,1896.3,1896.2,2.40772]
[1741946088521,4.73026118,1896.3,1896.2,1.3529]
[1741946088724,4.73026118,1896.3,1896.1,4.93973]
[1741946088725,1.05482,1896.2,1896.1,3.8849]
[1741946088917,2.36772,1896.2,1896.1,5.298]
[1741946089621,2.36772,1896.2,1896.1,6.35288]
[1741946089823,2.36772,1896.2,1896.1,5.298]
[1741946090511,2.36772,1896.2,1896.1,2.0902]
[1741946090717,3.07452,1896.2,1896.1,2.0902]
[1741946091129,3.07452,1896.2,1896.1,1.4131]
[1741946091620,2.0197,1896.2,1896.0,0.00790118]
[1741946091817,1.05499,1895.9,1895.8,1.4307]
[1741946092123,3.34299,1895.9,1895.8,1.4307]
[1741946092513,4.74839,1895.9,1895.8,1.4307]
[1741946093720,1.05504,1895.8,1895.7,0.67290118]
[1741946093923,2.46724,1895.8,1895.7,2.01720118]
[1741946094624,2.46724,1895.8,1895.7,3.07230118]
[1741946094924,2.46724,1895.8,1895.7,2.01720118]
[1741946096421,1.4122,1895.8,1895.7,3.07230118]
[1741946096616,0.7275,1896.0,1895.9,1.05498]
[1741946096617,1.05495,1896.0,1895.9,1.05498]
[1741946096820,2.289,1896.0,1895.8,2.1082]
[1741946097025,3.3439,1896.1,1895.8,5.316]
[1741946097225,3.6183,1896.1,1896.0,1.05493]
[1741946097424,4.67318,1896.1,1896.0,1.05493]
[1741946097724,2.29690118,1896.3,1896.2,1.05482]
[1741946098027,4.68101118,1896.3,1896.1,2.0759]
[1741946098229,3.35171118,1896.3,1896.2,1.4133]
[1741946098920,4.77531118,1896.3,1896.2,1.4133]
[1741946100127,4.06271118,1896.3,1896.2,1.4133]
[1741946101127,1.05488,1896.1,1896.0,0.6621]
[1741946101527,1.05488,1896.1,1895.9,2.1145]
[1741946101528,3.2078,1896.1,1895.9,2.1145]
[1741946101829,2.9908,1896.0,1895.9,1.4435]
[1741946102130,2.289,1896.0,1895.9,1.05499]
[1741946102830,2.289,1896.0,1895.8,3.915]
[1741946103132,1.05501,1895.9,1895.8,1.05503]
[1741946103324,1.05501,1895.9,1895.8,0.7046]
[1741946104425,1.05501,1895.9,1895.8,1.75964]
[1741946104826,1.05499,1895.9,1895.8,1.75964]
[1741946106431,1.05499,1895.9,1895.8,0.7046]
[1741946107033,1.05499,1895.9,1895.8,1.75964]
[1741946107430,1.05499,1895.9,1895.8,0.7046]
[1741946107924,1.05499,1895.9,1895.8,1.75964]
[1741946108125,1.05499,1895.9,1895.8,0.7046]
[1741946108325,3.34399,1895.9,1895.8,0.7046]
[1741946108820,2.289,1895.9,1895.7,1.73396118]
[1741946109024,1.05504,1895.8,1895.7,1.73396118]
[1741946110434,1.05504,1895.8,1895.7,0.67890118]
[1741946110940,1.05504,1895.8,1895.7,1.73400118]
[1741946111632,1.05504,1895.8,1895.7,0.67890118]
[1741946112330,1.05504,1895.8,1895.7,0.00790118]
[1741946112530,1.72864,1895.8,1895.7,0.00790118]
[1741946113334,1.72864,1895.8,1895.7,1.06300118]
[1741946113941,3.344,1895.9,1895.8,1.05504]
[1741946114146,3.344,1895.9,1895.8,0.6806]
[1741946114748,3.344,1895.9,1895.8,1.73564]
[1741946115451,3.344,1895.9,1895.8,0.6806]
[1741946116947,2.289,1895.9,1895.8,1.73564]
[1741946117344,1.3891,1895.9,1895.8,3.07814]
[1741946117545,3.34393,1896.1,1896.0,1.05493]
[1741946117847,1.05493,1896.0,1895.9,1.73684]
[1741946118047,2.44403,1896.0,1895.9,1.73684]
[1741946118657,0.90249641,1896.2,1895.9,0.6819]
[1741946118852,4.73292,1896.2,1896.1,1.05488]
[1741946119854,4.73292,1896.2,1896.0,1.05491]
[1741946119855,1.05491,1896.1,1896.0,1.05491]
[1741946120050,2.44401,1896.1,1896.0,1.05491]
[1741946120658,1.05493,1896.0,1895.9,1.73684]
[1741946120855,2.41163,1896.0,1895.9,1.73684]
[1741946121152,1.3567,1896.0,1895.9,4.94464]
[1741946121860,2.41163,1896.0,1895.9,4.94464]
[1741946124347,2.41163,1896.0,1895.9,3.8897]
[1741946124655,2.41163,1896.0,1895.9,0.6819]
[1741946125051,1.05499,1895.9,1895.8,0.6806]
[1741946125252,2.38669,1895.9,1895.8,1.405]
[1741946127059,2.38669,1895.9,1895.8,0.7244]
[1741946128463,1.3317,1895.9,1895.7,3.21570118]
[1741946128655,2.42274,1895.8,1895.7,0.00790118]
[1741946128863,3.12754,1895.8,1895.7,0.00790118]
[1741946129059,2.0725,1895.8,1895.3,4.26309]
[1741946129264,4.00187,1895.7,1895.3,4.26309]
[1741946129560,1.05527,1895.4,1895.3,4.26309]
[1741946129756,1.05525,1895.5,1895.4,1.05526]
[1741946129963,1.05527,1895.4,1895.3,4.26308]
[1741946130457,2.0689,1895.5,1895.3,3.2078]
[1741946130655,1.3641,1895.4,1895.3,4.26307]
[1741946130855,2.41937,1895.4,1895.3,3.2078]
[1741946131058,1.05532,1895.3,1895.2,1.40370118]
[1741946131365,2.41942,1895.3,1895.2,0.00790118]
[1741946131562,2.41942,1895.3,1895.2,0.67860118]
[1741946133164,4.70842,1895.3,1895.2,0.67860118]
[1741946133368,3.6531,1895.3,1895.2,1.73398118]
[1741946133572,2.9938,1895.5,1895.3,1.05528]
[1741946133771,4.4015,1895.5,1895.4,1.05527]
[1741946133968,2.289,1895.5,1895.4,1.05527]
[1741946134267,1.05512,1895.7,1895.6,1.05515]
[1741946134460,3.34412,1895.7,1895.6,1.05515]
[1741946134667,1.05517,1895.6,1895.5,1.05518]
[1741946134866,3.34413,1895.7,1895.6,1.05515]
[1741946135270,2.289,1895.7,1895.6,1.05515]
[1741946135469,1.0551,1895.7,1895.6,1.05515]
[1741946135667,1.0551,1895.7,1895.6,1.73865]
[1741946135862,1.05515,1895.6,1895.5,4.26299]
[1741946137475,3.6687,1895.8,1895.5,5.64489]
[1741946137677,1.0551,1895.7,1895.6,2.43704]
[1741946138176,1.0551,1895.7,1895.6,1.3819]
[1741946139776,1.0551,1895.7,1895.6,2.43705]
[1741946140478,4.72379,1895.8,1895.7,1.0551]
[1741946140677,4.03154,1895.8,1895.7,2.0978]
[1741946142573,1.74254,1895.8,1895.7,2.0978]
[1741946142780,4.03154,1895.8,1895.7,1.3763]
[1741946144383,1.0551,1895.7,1895.6,1.76634]
[1741946144575,1.0551,1895.7,1895.6,0.7112]
[1741946144780,1.05515,1895.6,1895.5,4.263]
[1741946145379,1.05515,1895.6,1895.5,4.26296]
[1741946145681,2.9623,1895.7,1895.5,3.2078]
[1741946145883,4.0174,1895.7,1895.6,1.4541]
[1741946146382,4.0174,1895.7,1895.6,2.50925]
[1741946147484,4.66,1895.7,1895.6,2.50925]
[1741946147882,3.2078,1896.1,1895.6,4.6619]
[1741946148079,2.289,1896.1,1895.8,3.2078]
[1741946148285,2.50445,1896.0,1895.9,2.45026]
[1741946148485,3.21570118,1896.3,1896.1,1.05484]
[1741946148785,1.4495,1896.2,1896.1,1.05484]
[1741946148986,2.50432,1896.2,1896.1,0.714]
[1741946149977,1.05488,1896.1,1896.0,0.7189]
[1741946150180,2.50438,1896.1,1896.0,0.7189]
[1741946150679,2.50438,1896.1,1896.0,1.77383]
[1741946152092,1.4495,1896.1,1896.0,1.77383]
[1741946152284,2.50438,1896.1,1896.0,1.77383]
[1741946152888,2.50438,1896.1,1896.0,0.7189]
[1741946153090,2.50438,1896.1,1896.0,1.77383]
[1741946153990,2.50438,1896.1,1896.0,0.7189]
[1741946154390,2.50438,1896.1,1896.0,1.77383]
[1741946158090,2.50438,1896.1,1896.0,0.7189]
[1741946158591,1.4495,1896.1,1895.9,0.7049]
[1741946158779,1.05499,1895.9,1895.8,3.2078]
[1741946158982,1.05504,1895.8,1895.7,2.43078]
[1741946159187,1.4207,1895.8,1895.7,5.63858]
[1741946159988,2.47574,1895.8,1895.7,5.63858]
[1741946160294,1.4207,1895.8,1895.7,5.63858]
[1741946160593,2.47574,1895.8,1895.7,5.63858]
[1741946162095,1.4207,1895.8,1895.7,5.63858]
[1741946162798,2.47574,1895.8,1895.7,5.63858]
[1741946164096,1.0551,1895.7,1895.6,1.05514]
[1741946164399,2.3876,1895.7,1895.6,1.05514]
[1741946164590,1.05515,1895.6,1895.5,4.95818]
[1741946164894,2.38765,1895.6,1895.5,4.95818]
[1741946165091,1.3325,1895.6,1895.5,4.95818]
[1741946173705,2.38765,1895.6,1895.5,4.95818]
[1741946173903,2.38765,1895.6,1895.5,3.2078]
[1741946174203,1.05521,1895.5,1895.4,1.4387]
[1741946174404,3.74061,1895.5,1895.4,1.4387]
[1741946174604,2.6854,1895.5,1895.3,3.2078]
[1741946174800,2.39787,1895.4,1895.3,3.2078]
[1741946175013,1.05532,1895.3,1895.2,0.00790118]
[1741946175209,2.40792,1895.3,1895.2,0.00790118]
[1741946178416,2.40792,1895.3,1895.2,1.41570118]
[1741946179218,1.3526,1895.3,1895.2,2.47108118]
[1741946179617,1.3526,1895.3,1895.2,3.17908118]
[1741946180015,1.3841,1895.4,1895.3,1.05528]
[1741946180317,1.3841,1895.4,1895.3,2.46308]
[1741946180811,2.43937,1895.4,1895.3,2.46308]
[1741946181007,2.43937,1895.4,1895.3,1.4078]
[1741946181203,3.10877,1895.4,1895.3,1.4078]
[1741946181408,1.3841,1895.4,1895.3,1.4078]
[1741946181608,1.3841,1895.4,1895.3,2.46312]
[1741946182716,2.43937,1895.4,1895.3,2.46312]
[1741946182918,1.3841,1895.4,1895.3,2.46312]
[1741946184118,1.3841,1895.4,1895.2,0.00790118]
[1741946184417,2.43941,1895.4,1895.3,1.05532]
[1741946184615,2.43937,1895.4,1895.3,2.41152]
[1741946187024,1.3841,1895.4,1895.2,0.00790118]
[1741946187229,3.17192,1895.3,1895.2,0.00790118]
[1741946188229,5.45992,1895.3,1895.2,0.00790118]
[1741946193833,5.45992,1895.3,1895.2,1.41180118]
[1741946194733,5.45992,1895.3,1895.2,2.46718118]
[1741946195130,1.4496,1895.3,1895.2,2.46718118]
[1741946196833,2.50492,1895.3,1895.2,2.46718118]
[1741946197134,1.4496,1895.3,1895.2,2.46718118]
[1741946199540,3.99955,1895.5,1895.4,1.05527]
[1741946200039,1.05527,1895.4,1895.3,3.04878]
[1741946200239,2.49477,1895.4,1895.3,1.72038]
[1741946204348,1.4395,1895.4,1895.3,1.72038]
[1741946204643,2.288,1895.5,1895.4,1.05527]
[1741946204839,2.288,1895.5,1895.4,1.76717]
[1741946205541,4.26286,1895.8,1895.4,3.35007]
[1741946205748,26.33689118,1896.3,1895.7,3.2078]
[1741946205749,2.288,1896.1,1895.7,3.2078]
[1741946206038,1.05499,1895.9,1895.8,1.055]
[1741946206243,2.288,1896.1,1895.8,1.05502]
[1741946206442,1.05497,1896.0,1895.5,7.23699]
[1741946206834,1.05497,1896.0,1895.8,1.055]
[1741946207034,1.3435,1895.9,1895.8,1.055]
[1741946207235,2.7703,1895.9,1895.8,1.055]
[1741946207433,2.7703,1895.9,1895.5,4.599]
[1741946207636,1.3435,1895.8,1895.7,1.05506]
[1741946211045,1.3435,1895.8,1895.7,4.26286]
[1741946212045,1.3435,1895.8,1895.7,1.05506]
[1741946212251,1.3435,1895.8,1895.7,4.26286]
[1741946212449,1.3435,1895.8,1895.7,1.05506]
[1741946212641,1.3435,1895.8,1895.7,4.26286]
[1741946213750,1.3189,1895.9,1895.8,1.05504]
[1741946213942,1.3189,1895.9,1895.8,2.50374]
[1741946216051,2.288,1896.0,1895.8,1.4487]
[1741946216247,1.4243,1895.9,1895.8,2.50374]
[1741946217446,1.4243,1895.9,1895.8,3.88454]
[1741946220349,3.6633,1896.1,1896.0,1.05493]
[1741946220653,3.0014,1896.1,1896.0,1.05493]
[1741946220854,0.7134,1896.1,1896.0,1.05493]
[1741946221855,2.0879,1896.1,1896.0,2.47043]
[1741946223048,3.14278,1896.1,1896.0,2.47043]
[1741946223248,3.80678,1896.1,1896.0,1.05493]
[1741946223852,2.7519,1896.1,1896.0,1.05493]
[1741946224053,3.80678,1896.1,1896.0,2.39033]
[1741946224755,2.7519,1896.1,1896.0,2.39033]
[1741946224953,6.09378,1896.1,1896.0,2.39033]
[1741946225650,5.0389,1896.1,1896.0,2.39033]
[1741946225848,6.09378,1896.1,1896.0,2.39033]
[1741946226254,5.0389,1896.1,1896.0,2.39033]
[1741946226455,3.6615,1896.1,1896.0,2.39033]
[1741946227051,4.71638,1896.1,1896.0,2.39033]
[1741946227356,3.6615,1896.1,1896.0,2.39033]
[1741946228365,4.71638,1896.1,1896.0,2.39033]
[1741946228558,4.71638,1896.1,1896.0,1.05493]
[1741946229263,1.05493,1896.0,1895.9,2.46154]
[1741946229461,2.7725,1896.0,1895.9,2.46154]
[1741946230161,3.82743,1896.0,1895.9,2.46154]
[1741946230458,2.7725,1896.0,1895.9,2.46154]
[1741946231057,2.7725,1896.0,1895.9,1.4066]
[1741946231258,1.05504,1895.8,1895.7,3.2078]
[1741946231755,3.34204,1895.8,1895.7,3.2078]
[1741946231961,3.34204,1895.8,1895.7,4.2629]
[1741946232359,3.34204,1895.8,1895.7,3.2078]
[1741946232863,3.34204,1895.8,1895.7,4.2629]
[1741946234364,3.34204,1895.8,1895.7,1.0551]
[1741946234965,4.69764,1895.8,1895.7,1.0551]
[1741946235168,4.69764,1895.8,1895.7,2.4185]
[1741946235363,4.69764,1895.8,1895.7,3.0746]
[1741946235868,3.6426,1895.8,1895.7,3.0746]
[1741946236067,1.3556,1895.8,1895.7,3.0746]
[1741946236263,1.3556,1895.8,1895.7,6.2824]
[1741946236762,2.287,1896.0,1895.7,5.2273]
[1741946236972,2.287,1896.0,1895.9,1.05499]
[1741946237165,1.333,1896.1,1896.0,1.05493]
[1741946238059,2.38788,1896.1,1896.0,3.84153]
[1741946238368,2.38788,1896.1,1896.0,2.7866]
[1741946239863,2.38788,1896.1,1896.0,1.3992]
[1741946243771,1.333,1896.1,1896.0,2.45413]
[1741946243970,2.287,1896.2,1896.1,1.05488]
[1741946244161,4.68952,1896.2,1896.1,3.86438]
[1741946244561,1.3477,1896.2,1896.1,3.86438]
[1741946244765,0.00790118,1896.3,1896.2,1.05482]
[1741946244961,0.00790118,1896.3,1896.2,2.44902]
[1741946245767,2.287,1896.8,1896.3,2.63692]
[1741946245963,2.287,1896.8,1896.4,1.3615]
[1741946245964,1.3156,1896.7,1896.4,1.3615]
[1741946246165,1.05463,1896.6,1896.4,3.12407]
[1741946246365,1.05463,1896.6,1896.5,1.05465]
[1741946246566,1.05463,1896.6,1896.5,2.41615]
[1741946246765,0.7016,1896.7,1896.5,2.41615]
[1741946246970,1.76408118,1896.7,1896.6,1.3615]
[1741946247472,1.0546,1896.6,1896.5,0.6864]
[1741946247777,1.0546,1896.6,1896.5,2.0479]
[1741946248073,1.0546,1896.6,1896.5,3.10255]
[1741946248970,0.70950118,1896.7,1896.6,1.0546]
[1741946249267,0.70950118,1896.7,1896.6,2.4031]
[1741946249667,1.76404118,1896.7,1896.6,1.3485]
[1741946249868,1.06244118,1896.7,1896.6,1.3485]
[1741946251668,1.0546,1896.6,1896.5,3.8942]
[1741946251869,1.0546,1896.6,1896.5,5.3042]
[1741946252371,1.0546,1896.6,1896.5,2.0964]